[Event "Sabadell Open 2018"]
[Site "Sabadell"]
[Date "2018.09.01"]
[Round "1"]
[White "Juan Bartroli, Marc"]
[Black "Juanico Rull, Guillem"]
[Result "1-0"]
[ECO "E00"]
[WhiteElo "2067"]
[BlackElo "1710"]
[Annotator "NA RC"]
[PlyCount "39"]
[EventDate "2018.09.01"]
[EventType "swiss"]
[EventCountry "ESP"]
[SourceTitle "playchess.com"]
[Source "ChessBase"]
[SourceQuality "1"]
[TimeControl "5400+30"]

1. d4 {[%emt 0:00:21]} Nf6 {[%emt 0:00:00]} 2. c4 {[%emt 0:00:27]} e6 {[%emt 0:00:00]} 3. Nc3 {[%emt 0:00:26]} b6 {[%emt 0:00:04]} 4. e4 {[%emt 0:01:24]} Bb4 {[%emt 0:04:05]} 5. Qc2 {[%emt 0:00:29]} Bb7 {[%emt 0:01:26]} 6. Bd3 {[%emt 0:00:42]} d5 {[%emt 0:04:09]} 7. cxd5 {[%emt 0:06:03]} exd5 {[%emt 0:02:18]} 8. e5 {[%emt 0:07:03]} Ne4 {[%emt 0:09:14]} 9. Nf3 {[%emt 0:06:16]} h6 {[%emt 0:01:41]} 10. O-O Bxc3 {[%emt 0:01:25]} 11. bxc3 {[%emt 0:02:18]} O-O {[%emt 0:06:14]} 12. Nd2 {[%emt 0:06:28] E32: Nimzo-Indian: Classical (4 Qc2): 4...0-0} Nxd2 {[%emt 0:11:49]} 13. Qxd2 {[%emt 0:01:32]} ({Keinesfalls} 13. Bxd2 c5 $16) 13... c5 {[%emt 0:03:06]} 14. Ba3 $146 {[%emt 0:05:23]} ({Predecessor:} 14. Qe2 Nc6 {1-0 (37) Thorsteins,K (2440)-Agustsson,J (2285) Hafnarfjordur 1988}) 14... Qc7 {[%emt 0:02:40]} 15. f4 {[%emt 0:18:07]} f6 {[%emt 0:07:22]} 16. Qe3 {[%emt 0:18:37]} Nd7 {[%emt 0:10:05]} 17. Qh3 {[%emt 0:10:46]} fxe5 {[%emt 0:19:43]} 18. fxe5 {[%emt 0:01:09]} Bc8 {[%emt 0:01:58]} 19. Qe6+ $18 {[%emt 0:02:04]} Kh8 {[%emt 0:02:16]} 20. Qg6 {[%emt 0:00:34]} 1-0

[Event "Sabadell Open 2018"]
[Site "Sabadell"]
[Date "2018.09.01"]
[Round "1"]
[White "Farre Liarte, Francesc"]
[Black "Martinez Molina, Jose Juan"]
[Result "1-0"]
[ECO "C40"]
[WhiteElo "1638"]
[BlackElo "1723"]
[Annotator "NA RC"]
[PlyCount "45"]
[EventDate "2018.09.01"]
[EventType "swiss"]
[EventCountry "ESP"]
[SourceTitle "playchess.com"]
[Source "ChessBase"]
[SourceQuality "1"]
[TimeControl "5400+30"]

1. e4 {[%emt 0:00:00]} e5 {[%emt 0:00:00]} 2. Nf3 {[%emt 0:00:05]} f6 {[%emt 0:00:44]} 3. Nxe5 {[%emt 0:05:00]} Ne7 {[%emt 0:03:21]} 4. Nf3 {[%emt 0:00:51]} d6 {[%emt 0:01:33]} 5. d4 {[%emt 0:01:57]} Ng6 {[%emt 0:02:17]} 6. Bc4 Be6 {[%emt 0:03:33]} 7. Bxe6 {[%emt 0:01:17]} Qe7 {[%emt 0:02:57]} 8. Bf5 {[%emt 0:00:29]} Nc6 {[%emt 0:01:59]} 9. O-O {[%emt 0:02:31]} Rd8 {[%emt 0:10:04]} 10. Nc3 {[%emt 0:01:41]} Qf7 {[%emt 0:05:54]} 11. d5 {[%emt 0:03:53]} Nce5 {[%emt 0:01:02]} 12. Be6 {[%emt 0:00:17]} Qe7 {[%emt 0:01:27]} 13. Nd4 {[%emt 0:01:10]} Nh4 {[%emt 0:04:42]} 14. Qh5+ {[%emt 0:03:17]} g6 {[%emt 0:08:25]} 15. Qxh4 {[%emt 0:01:28]} c5 16. Ndb5 {[%emt 0:04:12]} a6 {[%emt 0:17:46]} 17. Na3 h5 {[%emt 0:04:07]} 18. f4 {[%emt 0:00:23]} g5 {[%emt 0:01:46]} 19. fxg5 {[%emt 0:02:38]} fxg5 {[%emt 0:01:20]} 20. Bxg5 {[%emt 0:00:32]} Ng6 {[%emt 0:03:25]} 21. Rxf8+ {[%emt 0:02:31]} Rxf8 {[%emt 0:02:22]} 22. Bxe7 {[%emt 0:01:03]} Nxh4 {[%emt 0:00:37]} 23. Bxh4 1-0

[Event "Sabadell Open 2018"]
[Site "Sabadell"]
[Date "2018.09.02"]
[Round "2"]
[White "Torralba Brosa, Marc"]
[Black "Juan Bartroli, Marc"]
[Result "1/2-1/2"]
[ECO "B19"]
[WhiteElo "1809"]
[BlackElo "2067"]
[Annotator "NA"]
[PlyCount "63"]
[EventDate "2018.09.01"]
[EventType "swiss"]
[EventCountry "ESP"]
[SourceTitle "playchess.com"]
[Source "ChessBase"]
[SourceQuality "1"]
[TimeControl "5400+30"]

1. e4 {[%emt 0:00:00]} c6 {[%emt 0:00:00]} 2. d4 {[%emt 0:00:00]} d5 {[%emt 0:00:11]} 3. Nc3 {[%emt 0:00:00]} dxe4 {[%emt 0:00:17]} 4. Nxe4 {[%emt 0:00:00]} Bf5 {[%emt 0:00:18]} 5. Ng3 {[%emt 0:00:07]} Bg6 {[%emt 0:00:19]} 6. h4 {[%emt 0:00:06]} h6 {[%emt 0:00:20]} 7. Nf3 {[%emt 0:00:07]} Nd7 {[%emt 0:00:16]} 8. h5 {[%emt 0:00:08]} Bh7 9. Bd3 {[%emt 0:00:05]} Bxd3 {[%emt 0:00:37]} 10. Qxd3 {[%emt 0:00:07]} e6 {[%emt 0:00:16]} 11. Bd2 {[%emt 0:00:54]} Ngf6 {[%emt 0:00:30]} 12. O-O-O {[%emt 0:00:21]} Be7 {[%emt 0:00:25]} 13. Kb1 {[%emt 0:00:06]} Qb6 {[%emt 0:00:24] B19: Classical Caro-Kann: 4...Bf5 main line} 14. Ne4 {[%emt 0:03:10]} Rd8 {[%emt 0:00:43]} 15. g4 {[%emt 0:04:28]} Nxg4 {[%emt 0:08:36]} 16. Qe2 {[%emt 0:03:39] [#]} ({White should try} 16. Rhg1 $1 $11 f5 17. Qc4) 16... c5 $146 {[%emt 0:05:40]} ({Predecessor:} 16... Qb5 17. c4 Qf5 18. Ka1 Ngf6 19. Ng3 Qh7 20. Bc3 O-O 21. d5 cxd5 22. cxd5 {0-1 (29) Mueller,M (2057)-Donchenko,A (2587) Maastricht 2018}) 17. Rdg1 {[%emt 0:01:15]} f5 {[%emt 0:07:47] [#]} 18. dxc5 $2 {[%emt 0:03:44]} (18. Ba5 $1 $16 {[%cal Ra5b6] keeps the pressure on.} Qxa5 19. Nd6+ Bxd6 20. Qxe6+ Be7 21. Re1) 18... Nxc5 {[%emt 0:07:13]} 19. Nxc5 {[%emt 0:00:16]} Bxc5 {[%emt 0:00:48]} 20. Re1 {[%emt 0:09:45]} Kf7 $2 {[%emt 0:12:48] [#]} ({Doch nicht} 20... Bxf2 $6 {[#]} 21. Ba5 $1 $11 {[%mdl 512]}) (20... O-O $17 21. Qxe6+ Qxe6 22. Rxe6 Nxf2) 21. Ba5 $1 {[%emt 0:12:03]} Qc6 $2 {[%emt 0:05:18] [#]} ({Wrong is} 21... Qxa5 $2 22. Qxe6+ Kf8 23. Nh4 $18) (21... Qa6 $14) 22. Bxd8 $2 {[%emt 0:01:09]} ({Der einzige Zug:} 22. Rhg1 $1 $18 Qd5 23. Rxg4 fxg4 24. Ne5+ Kg8 25. Bxd8 Qxd8 26. Qxg4) 22... Rxd8 {[%emt 0:00:02]} 23. Rhg1 {[%emt 0:07:38]} Qb6 {[%emt 0:03:35]} 24. Rxg4 {[%emt 0:05:44]} fxg4 {[%emt 0:02:00]} 25. Ne5+ {[%emt 0:00:16]} Kg8 {[%emt 0:09:38]} 26. Qxg4 {[%emt 0:03:31]} Bxf2 {[%emt 0:11:36]} 27. Nc4 $17 {[%emt 0:08:24]} (27. Re4 $15) 27... Qc6 {[%emt 0:09:53]} 28. Rf1 {[%emt 0:04:59]} Rd4 {[%emt 0:10:31]} 29. Qe2 {[%emt 0:00:32]} Qxc4 {[%emt 0:01:42]} 30. Qxf2 {[%emt 0:00:15]} Rd2 31. Qf7+ Kh7 32. Qf8 1/2-1/2

[Event "Sabadell Open 2018"]
[Site "Sabadell"]
[Date "2018.09.02"]
[Round "2"]
[White "Montserrat Rubia, Angel"]
[Black "Garcia Torres, Adolfo"]
[Result "1/2-1/2"]
[ECO "A28"]
[WhiteElo "1632"]
[BlackElo "1491"]
[Annotator "NA"]
[PlyCount "60"]
[EventDate "2018.09.01"]
[EventType "swiss"]
[EventCountry "ESP"]
[SourceTitle "playchess.com"]
[Source "ChessBase"]
[SourceQuality "1"]
[TimeControl "5400+30"]

1. c4 {[%emt 0:04:48]} e5 2. Nc3 {[%emt 0:00:20]} Nc6 {[%emt 0:00:00]} 3. Nf3 {[%emt 0:01:07]} Nf6 {[%emt 0:00:25]} 4. e4 {[%emt 0:02:55]} Bb4 {[%emt 0:04:18]} 5. d3 {[%emt 0:00:22]} d6 {[%emt 0:01:50]} 6. a3 {[%emt 0:03:26]} Bc5 {[%emt 0:05:23]} 7. Be2 {[%emt 0:03:29]} a6 {[%emt 0:03:56]} 8. O-O {[%emt 0:03:25]} Bg4 {[%emt 0:02:48]} 9. Nd5 {[%emt 0:07:43]} h6 {[%emt 0:03:17]} 10. b4 {[%emt 0:02:15]} Ba7 11. Be3 {[%emt 0:07:32]} Bxf3 {[%emt 0:01:26]} 12. Nxf6+ {[%emt 0:01:03]} Qxf6 {[%emt 0:00:28]} 13. Bxf3 Nd4 {[%emt 0:00:46]} 14. Bxd4 {[%emt 0:03:22]} Bxd4 {[%emt 0:00:18]} 15. Ra2 {[%emt 0:03:33]} O-O {[%emt 0:00:10]} 16. Qd2 Qg6 {[%emt 0:02:31]} 17. Kh1 {[%emt 0:05:45]} c6 {[%emt 0:00:06]} 18. Qe2 {[%emt 0:03:36]} f5 {[%emt 0:03:56]} 19. exf5 {[%emt 0:05:03]} Qxf5 {[%emt 0:00:15]} 20. Qe4 Qxe4 {[%emt 0:03:19]} 21. Bxe4 {[%emt 0:01:07]} g5 {[%emt 0:00:54]} 22. h3 {[%emt 0:02:54]} h5 {[%emt 0:03:58]} 23. Bg6 {[%emt 0:00:43]} h4 {[%emt 0:00:16]} 24. Bh5 {[%emt 0:00:49]} Rf6 {[%emt 0:02:09]} 25. Re2 {[%emt 0:01:42]} Raf8 {[%emt 0:01:07]} 26. f3 {[%emt 0:02:56]} Rf4 27. Bg4 R4f6 28. Bh5 Rf4 29. Bg4 Kg7 30. c5 d5 1/2-1/2

[Event "Sabadell Open 2018"]
[Site "Sabadell"]
[Date "2018.09.03"]
[Round "3"]
[White "Nadal Fajardo, Ricard"]
[Black "Palacin Martin, Ricardo"]
[Result "1/2-1/2"]
[ECO "D02"]
[WhiteElo "1920"]
[BlackElo "2055"]
[Annotator "NA"]
[PlyCount "27"]
[EventDate "2018.09.01"]
[EventType "swiss"]
[EventCountry "ESP"]
[SourceTitle "playchess.com"]
[Source "ChessBase"]
[SourceQuality "1"]
[TimeControl "5400+30"]

1. d4 d5 2. Nf3 Nf6 3. g3 e6 4. Bg2 c5 5. O-O Nc6 6. b3 Be7 7. Bb2 O-O 8. e3 b6 9. c4 Bb7 10. cxd5 exd5 11. Nc3 cxd4 12. Nxd4 Qd7 13. Qd2 Rfd8 14. Rfd1 1/2-1/2

[Event "Sabadell Open 2018"]
[Site "Sabadell"]
[Date "2018.09.03"]
[Round "3"]
[White "Carbajal Gutierrez, Sergi Rober"]
[Black "Martinez Torras, Pol"]
[Result "0-1"]
[ECO "D10"]
[WhiteElo "1529"]
[BlackElo "1621"]
[Annotator "NA"]
[PlyCount "80"]
[EventDate "2018.09.01"]
[EventType "swiss"]
[EventCountry "ESP"]
[SourceTitle "playchess.com"]
[Source "ChessBase"]
[SourceQuality "1"]
[TimeControl "5400+30"]

1. d4 {[%emt 0:00:00]} d5 {[%emt 0:00:00]} 2. c4 {[%emt 0:00:00]} c6 {[%emt 0:00:00]} 3. Nc3 {[%emt 0:00:52]} Nf6 {[%emt 0:01:24]} 4. cxd5 {[%emt 0:01:26]} cxd5 {[%emt 0:00:16]} 5. Nf3 {[%emt 0:01:06]} Nc6 {[%emt 0:01:26]} 6. Bg5 {[%emt 0:05:37]} e6 {[%emt 0:07:19]} 7. e3 {[%emt 0:03:30]} Be7 {[%emt 0:03:50]} 8. a3 h6 {[%emt 0:01:29]} 9. Bh4 {[%emt 0:01:15]} a6 {[%emt 0:02:29]} 10. Qc2 {[%emt 0:04:54]} O-O {[%emt 0:03:35]} 11. Bd3 {[%emt 0:03:37]} Qc7 {[%emt 0:05:14]} 12. O-O {[%emt 0:22:14]} Rd8 13. Ne2 {[%emt 0:02:39]} g5 {[%emt 0:05:16]} 14. Bg3 {[%emt 0:06:09]} Bd6 {[%emt 0:09:06]} 15. Rac1 Nh5 {[%emt 0:00:24]} 16. Bxd6 {[%emt 0:10:01]} Qxd6 17. Ng3 {[%emt 0:19:23]} Nxg3 {[%emt 0:03:11]} 18. fxg3 {[%emt 0:04:14]} f5 {[%emt 0:07:38]} 19. Qe2 {[%emt 0:02:55]} Bd7 20. Nd2 {[%emt 0:04:09]} g4 {[%emt 0:11:26]} 21. Nb3 Rf8 {[%emt 0:06:51]} 22. Rf4 {[%emt 0:01:39]} h5 {[%emt 0:01:01]} 23. Rcf1 {[%emt 0:00:45]} Ne7 {[%emt 0:03:47]} 24. Nc5 b5 {[%emt 0:00:02]} 25. Nxd7 {[%emt 0:03:05]} Qxd7 26. Rc1 {[%emt 0:01:00]} Rac8 {[%emt 0:00:56]} 27. Rff1 {[%emt 0:01:05]} Kg7 {[%emt 0:03:23]} 28. Rxc8 {[%emt 0:00:07]} Nxc8 {[%emt 0:00:32]} 29. h4 Nd6 {[%emt 0:03:22]} 30. b3 {[%emt 0:01:35]} Rc8 {[%emt 0:00:38]} 31. Qd2 {[%emt 0:00:38]} Qc7 {[%emt 0:03:39]} 32. Rb1 {[%emt 0:01:00]} Qc3 {[%emt 0:00:36]} 33. Qe2 {[%emt 0:00:33]} Ne4 {[%emt 0:03:16]} 34. Bxe4 {[%emt 0:00:06]} dxe4 35. Kf2 Qd3 {[%emt 0:01:22]} 36. Qxd3 {[%emt 0:01:37]} exd3 {[%emt 0:00:02]} 37. e4 {[%emt 0:00:16]} fxe4 {[%emt 0:00:38]} 38. Ke3 Rc2 {[%emt 0:00:18]} 39. Re1 {[%emt 0:00:48]} Rxg2 {[%emt 0:00:42]} 40. Kxe4 {[%emt 0:00:36]} Re2+ {[%emt 0:00:08]} 0-1

[Event "Sabadell Open 2018"]
[Site "Sabadell"]
[Date "2018.09.04"]
[Round "4"]
[White "Mut Company, Guillem"]
[Black "Prats Rodriguez, Juan Bosco"]
[Result "0-1"]
[ECO "A41"]
[WhiteElo "1968"]
[BlackElo "1997"]
[Annotator "NA RC"]
[PlyCount "58"]
[EventDate "2018.09.01"]
[EventType "swiss"]
[EventCountry "ESP"]
[SourceTitle "playchess.com"]
[Source "ChessBase"]
[SourceQuality "1"]
[TimeControl "5400+30"]

1. d4 d6 {[%emt 0:00:14]} 2. Nf3 {[%emt 0:01:06]} Bg4 {[%emt 0:00:06]} 3. c4 {[%emt 0:02:17]} Bxf3 {[%emt 0:00:08]} 4. gxf3 {[%emt 0:05:35]} c6 {[%emt 0:02:53]} 5. Nc3 {[%emt 0:01:17]} g6 {[%emt 0:03:47]} 6. Bg2 {[%emt 0:07:45] A41: 1 d4 d6: Tartakower System and Modern Defence} Bg7 7. f4 {[%emt 0:03:48]} e6 {[%emt 0:03:30]} (7... Nh6 8. e3 Nf5 9. O-O O-O 10. b3 Nd7 11. Bb2 e6 12. Ne4 {0-1 (83) Schiendorfer,E (2349)-Markowski,T (2612) Plovdiv 2012}) 8. Qd3 $146 {[%emt 0:06:59]} ({Predecessor:} 8. d5 exd5 9. cxd5 Ne7 10. Qb3 Qd7 11. Bd2 O-O 12. O-O-O Na6 13. Kb1 Nc5 {1-0 (45) Medic,M (2239)-Tratar,M (2499) Pula 2006}) 8... Ne7 {[%emt 0:06:33]} 9. e3 {[%emt 0:07:41]} d5 {[%emt 0:10:31]} 10. Bd2 {[%emt 0:08:13]} Nd7 {[%emt 0:01:04]} 11. c5 {[%emt 0:03:04]} Nf5 {[%emt 0:01:35]} 12. b4 {[%emt 0:08:39]} O-O {[%emt 0:01:33]} 13. b5 {[%emt 0:05:13]} cxb5 {[%emt 0:01:41]} 14. Qxb5 {[%emt 0:01:19]} Rb8 {[%emt 0:09:41]} 15. Ke2 $2 {[%emt 0:03:57] [#]} (15. O-O $11) 15... Bxd4 $1 {[%emt 0:00:56]} 16. Qb2 {[%emt 0:05:35]} Bg7 {[%emt 0:00:53]} 17. Qa3 {[%emt 0:07:16]} d4 {[%emt 0:04:48]} 18. Nb5 Nxc5 {[%emt 0:08:33]} 19. Qxc5 {[%emt 0:03:17]} d3+ {[%emt 0:01:42]} 20. Kf3 {[%emt 0:00:48]} Rc8 {[%emt 0:04:53]} 21. Qb4 {[%emt 0:00:26]} Bxa1 {[%emt 0:06:28]} 22. Rxa1 {[%emt 0:00:28]} Qh4 {[%emt 0:01:14]} 23. Nd4 {[%emt 0:05:50]} Qh5+ {[%emt 0:02:51]} 24. Ke4 {[%emt 0:00:05]} Qxh2 {[%emt 0:01:45]} 25. Bf3 {[%emt 0:03:47]} Qxf2 {[%emt 0:01:06]} 26. Bd1 {[%emt 0:02:34]} Rfd8 {[%emt 0:05:26]} 27. Rc1 {[%emt 0:03:12]} Rxc1 {[%emt 0:03:53]} 28. Bxc1 {[%emt 0:00:23]} Qf1 {[%emt 0:03:35]} 29. Qb3 {[%emt 0:01:45]} Rd5 $19 {[%emt 0:04:49]} 0-1

[Event "Sabadell Open 2018"]
[Site "Sabadell"]
[Date "2018.09.04"]
[Round "4"]
[White "Martinez Torras, Pol"]
[Black "Serentill Tost, Eduard"]
[Result "0-1"]
[ECO "A16"]
[WhiteElo "1621"]
[BlackElo "1613"]
[Annotator "NA RC"]
[PlyCount "81"]
[EventDate "2018.09.01"]
[EventType "swiss"]
[EventCountry "ESP"]
[SourceTitle "playchess.com"]
[Source "ChessBase"]
[SourceQuality "1"]
[TimeControl "5400+30"]

1. c4 {[%emt 0:00:00]} Nf6 {[%emt 0:00:00]} 2. Nc3 {[%emt 0:00:10]} g6 {[%emt 0:00:32]} 3. g3 {[%emt 0:00:29]} Bg7 {[%emt 0:00:14]} 4. Bg2 {[%emt 0:00:07]} d6 {[%emt 0:00:20]} 5. Nf3 {[%emt 0:00:14]} O-O {[%emt 0:00:42]} 6. O-O {[%emt 0:00:18]} Nbd7 7. Rb1 {[%emt 0:04:01]} e5 {[%emt 0:06:11]} 8. d3 {[%emt 0:01:05]} a6 9. Bd2 {[%emt 0:04:09]} h6 {[%emt 0:04:06]} 10. b4 c5 11. b5 {[%emt 0:03:41]} Re8 {[%emt 0:06:43]} 12. Ne1 {[%emt 0:06:13]} Rb8 {[%emt 0:05:01]} 13. Qb3 {[%emt 0:16:01]} b6 14. bxa6 {[%emt 0:05:07]} Bxa6 {[%emt 0:02:39]} 15. Qa4 Bb7 16. Nb5 {[%emt 0:04:33]} Bxg2 {[%emt 0:04:47]} 17. Nxg2 {[%emt 0:00:52]} Nf8 18. e4 {[%emt 0:01:09]} Qd7 {[%emt 0:04:45]} 19. Qc2 {[%emt 0:10:25]} Ra8 20. f4 Ra6 {[%emt 0:06:21]} 21. fxe5 {[%emt 0:01:24]} dxe5 {[%emt 0:01:15]} 22. Bxh6 {[%emt 0:00:00]} Bxh6 {[%emt 0:04:10]} 23. Rxf6 {[%emt 0:00:05]} Ne6 24. Rbf1 {[%emt 0:01:54]} Re7 {[%emt 0:05:09]} 25. h4 {[%emt 0:04:10]} Bg7 {[%emt 0:01:56]} 26. R6f3 {[%emt 0:00:41]} Nd4 27. Nxd4 Qxd4+ {[%emt 0:02:51]} 28. Qf2 {[%emt 0:00:49]} Rxa2 {[%emt 0:02:31]} 29. Qxd4 {[%emt 0:00:44]} exd4 30. Nf4 {[%emt 0:04:47]} Rb2 {[%emt 0:04:03]} 31. Ra1 b5 {[%emt 0:02:12]} 32. Ra8+ {[%emt 0:02:34]} Kh7 33. Nd5 {[%emt 0:00:55]} Rb7 {[%emt 0:01:44]} 34. Rc8 {[%emt 0:02:28]} bxc4 {[%emt 0:06:13]} 35. dxc4 {[%emt 0:02:08]} Re2 {[%emt 0:03:05]} 36. Rf2 {[%emt 0:00:28]} Rb1+ {[%emt 0:04:29]} 37. Kg2 {[%emt 0:13:39]} d3 {[%emt 0:06:30]} 38. Nf4 Rxf2+ {[%emt 0:00:50]} 39. Kxf2 {[%emt 0:00:32]} Bd4+ {[%emt 0:00:16]} 40. Kg2 {[%emt 0:03:25]} d2 41. Ra8 0-1

[Event "Sabadell Open 2018"]
[Site "Sabadell"]
[Date "2018.09.05"]
[Round "5"]
[White "Boixader Arbo, Xavier"]
[Black "Nieto Farreny, Francesc"]
[Result "1/2-1/2"]
[ECO "B27"]
[WhiteElo "2028"]
[BlackElo "2191"]
[Annotator "NA"]
[PlyCount "62"]
[EventDate "2018.09.01"]
[EventType "swiss"]
[EventCountry "ESP"]
[SourceTitle "playchess.com"]
[Source "ChessBase"]
[SourceQuality "1"]
[TimeControl "5400+30"]

1. e4 {[%emt 0:00:00]} c5 {[%emt 0:11:22]} 2. Nf3 {[%emt 0:00:00]} g6 {[%emt 0:00:07]} 3. d4 {[%emt 0:00:00]} cxd4 {[%emt 0:00:18]} 4. Qxd4 {[%emt 0:00:00]} Nf6 {[%emt 0:00:05]} 5. e5 {[%emt 0:00:00]} Nc6 {[%emt 0:00:05]} 6. Qa4 {[%emt 0:00:00]} Nd5 {[%emt 0:00:06]} 7. Qe4 {[%emt 0:00:01]} Nb6 {[%emt 0:01:09] B27: Sicilian: 2 Nf3, unusual Black 2nd moves} 8. Nc3 {[%emt 0:00:09]} Bg7 {[%emt 0:00:06]} 9. Bf4 {[%emt 0:00:20]} d5 {[%emt 0:00:12]} 10. exd6 {[%emt 0:00:13]} Bf5 {[%emt 0:00:07]} 11. Qe3 {[%emt 0:00:29]} (11. dxe7 Qd7 12. Qe3 Nb4 13. Rc1 Nxc2+ 14. Rxc2 Bxc2 15. Bb5 Bxc3+ 16. Qxc3 Qxb5 17. Qxh8+ Kxe7 {½-½ (22) Ortiz Suarez,I (2548)-Guseinov,G (2654) Barbera del Valles 2018}) 11... O-O {[%emt 0:00:21]} 12. O-O-O {[%emt 0:00:38]} exd6 {[%emt 0:00:08]} 13. Bxd6 {[%emt 0:00:37]} Re8 {[%emt 0:00:09] [#]} 14. Qc5 $146 {[%emt 0:02:35]} ({Predecessor:} 14. Qf4 Qc8 15. Bd3 {1-0 (27) Khusnutdinov,R (2509)-Oshakbayev,B (2115) Pavlodar 2015}) 14... Qf6 {[%emt 0:07:30]} 15. Bb5 {[%emt 0:05:32]} Rac8 {[%emt 0:38:54]} 16. Rhe1 {[%emt 0:05:10]} Rxe1 {[%emt 0:05:44]} 17. Rxe1 {[%emt 0:09:02]} Be6 {[%emt 0:01:02]} 18. Qa3 {[%emt 0:18:05]} Nc4 {[%emt 0:06:09]} 19. Bxc4 {[%emt 0:00:49]} Bxc4 {[%emt 0:00:02]} 20. Ne4 {[%emt 0:02:08]} Qd8 {[%emt 0:12:58]} 21. Bf4 {[%emt 0:04:25]} Be6 {[%emt 0:03:48]} 22. Nc5 {[%emt 0:07:51]} Bf5 {[%emt 0:07:35]} 23. Nxb7 {[%emt 0:11:59]} Qb6 {[%emt 0:00:10]} 24. Nd6 {[%emt 0:01:03]} Qxf2 {[%emt 0:00:42]} 25. Nxf5 {[%emt 0:00:47]} gxf5 {[%emt 0:00:01]} 26. Qe3 {[%emt 0:02:38]} Qxe3+ {[%emt 0:01:35]} 27. Rxe3 {[%emt 0:00:13]} Nb4 {[#]} 28. Rb3 $1 {[%emt 0:07:17]} Rxc2+ {[%emt 0:01:09]} 29. Kb1 {[%emt 0:00:32]} Rc4 {[%emt 0:00:01]} 30. Bd2 {[%emt 0:00:16]} Nc6 {[%emt 0:01:11]} 31. Rb7 $16 Bf8 1/2-1/2

[Event "Sabadell Open 2018"]
[Site "Sabadell"]
[Date "2018.09.05"]
[Round "5"]
[White "Prats Rodriguez, Juan Bosco"]
[Black "Palacin Martin, Ricardo"]
[Result "1/2-1/2"]
[ECO "C00"]
[WhiteElo "1997"]
[BlackElo "2055"]
[Annotator "NA"]
[PlyCount "85"]
[EventDate "2018.09.01"]
[EventType "swiss"]
[EventCountry "ESP"]
[SourceTitle "playchess.com"]
[Source "ChessBase"]
[SourceQuality "1"]
[TimeControl "5400+30"]

1. e4 {[%emt 0:00:00]} e6 {[%emt 0:00:00]} 2. d3 {[%emt 0:00:00]} c5 3. Nf3 b6 {[%emt 0:00:00]} 4. g3 {[%emt 0:02:22]} Bb7 {[%emt 0:00:00]} 5. Bg2 {[%emt 0:00:21]} d5 {[%emt 0:00:51]} 6. Qe2 {[%emt 0:01:30]} Ne7 {[%emt 0:01:03]} 7. O-O {[%emt 0:01:35]} Nbc6 8. c4 {[%emt 0:08:36]} d4 {[%emt 0:03:06]} 9. e5 {[%emt 0:01:43]} Qd7 {[%emt 0:04:30]} 10. h4 {[%emt 0:01:31]} h5 {[%emt 0:00:53]} 11. Bg5 {[%emt 0:03:12]} Ng6 {[%emt 0:01:19]} 12. Re1 {[%emt 0:02:24]} Be7 13. Bxe7 {[%emt 0:02:07]} Ngxe7 {[%emt 0:05:18]} 14. Nbd2 Ng6 {[%emt 0:03:19]} 15. Ne4 {[%emt 0:05:40]} Ncxe5 {[%emt 0:01:23]} 16. Nxe5 {[%emt 0:00:15]} Nxe5 {[%emt 0:00:15]} 17. Nxc5 {[%emt 0:00:28]} bxc5 {[%emt 0:00:35]} 18. Bxb7 Qxb7 {[%emt 0:00:12]} 19. Qxe5 {[%emt 0:03:41]} O-O {[%emt 0:00:48]} 20. Qxh5 {[%emt 0:03:50]} Qxb2 {[%emt 0:02:00]} 21. Qg5 {[%emt 0:09:44]} Qb6 {[%emt 0:03:22]} 22. h5 {[%emt 0:01:25]} f6 {[%emt 0:01:26]} 23. Qg6 {[%emt 0:00:47]} e5 {[%emt 0:00:55]} 24. h6 {[%emt 0:01:14]} Qc7 {[%emt 0:00:13]} 25. Re4 {[%emt 0:03:54]} Qf7 {[%emt 0:01:27]} 26. Rg4 {[%emt 0:01:24]} Qxg6 {[%emt 0:00:28]} 27. Rxg6 {[%emt 0:00:02]} Kh7 {[%emt 0:02:47]} 28. Rxg7+ {[%emt 0:02:22]} Kxh6 {[%emt 0:00:12]} 29. Rc7 {[%emt 0:00:21]} Rfc8 {[%emt 0:00:20]} 30. Rb7 {[%emt 0:04:16]} Rc6 {[%emt 0:00:55]} 31. Kg2 {[%emt 0:00:31]} Kg6 {[%emt 0:01:33]} 32. Kf3 {[%emt 0:00:51]} Ra6 {[%emt 0:00:46]} 33. a4 {[%emt 0:04:46]} Kf5 {[%emt 0:01:24]} 34. a5 {[%emt 0:00:56]} Rc8 {[%emt 0:00:24]} 35. g4+ {[%emt 0:01:14]} Ke6 {[%emt 0:00:45]} 36. Rh1 {[%emt 0:07:25]} Rxa5 {[%emt 0:00:46]} 37. Rhh7 Ra2 {[%emt 0:04:43]} 38. Rbe7+ {[%emt 0:06:52]} Kd6 {[%emt 0:00:17]} 39. Ref7 {[%emt 0:01:00]} Ke6 {[%emt 0:00:32]} 40. g5 {[%emt 0:00:54]} fxg5 {[%emt 0:02:03]} 41. Kg4 {[%emt 0:01:04]} Rh8 42. Re7+ {[%emt 0:02:16]} Kf6 {[%emt 0:10:43]} 43. Ref7+ 1/2-1/2

[Event "Sabadell Open 2018"]
[Site "Sabadell"]
[Date "2018.09.05"]
[Round "5"]
[White "Serentill Tost, Eduard"]
[Black "Garcia Torres, Adolfo"]
[Result "1-0"]
[ECO "C42"]
[WhiteElo "1613"]
[BlackElo "1491"]
[Annotator "NA"]
[PlyCount "63"]
[EventDate "2018.09.01"]
[EventType "swiss"]
[EventCountry "ESP"]
[SourceTitle "playchess.com"]
[Source "ChessBase"]
[SourceQuality "1"]
[TimeControl "5400+30"]

1. e4 {[%emt 0:05:45]} e5 {[%emt 0:00:00]} 2. Nf3 {[%emt 0:00:07]} Nf6 {[%emt 0:00:00]} 3. Nxe5 {[%emt 0:00:10]} Qe7 {[%emt 0:00:00]} 4. d4 {[%emt 0:02:18]} d6 5. Nf3 {[%emt 0:00:28]} Qxe4+ {[%emt 0:00:00]} 6. Be2 {[%emt 0:01:13]} Be7 {[%emt 0:00:14]} 7. Nc3 {[%emt 0:00:52]} Qc6 {[%emt 0:00:45]} 8. Bb5 {[%emt 0:00:23]} Qxb5 {[%emt 0:01:45]} 9. Nxb5 {[%emt 0:00:32]} Na6 {[%emt 0:00:09]} 10. Bg5 {[%emt 0:02:30]} O-O {[%emt 0:00:45]} 11. O-O {[%emt 0:01:02]} Bd7 {[%emt 0:00:20]} 12. Nc3 h6 13. Bxf6 {[%emt 0:02:20]} Bxf6 {[%emt 0:00:46]} 14. Nd5 {[%emt 0:00:17]} Bd8 {[%emt 0:00:59]} 15. Re1 {[%emt 0:00:49]} c6 {[%emt 0:00:07]} 16. Nf4 {[%emt 0:02:24]} Bf6 {[%emt 0:05:54]} 17. c3 {[%emt 0:01:53]} Nc7 {[%emt 0:00:17]} 18. Nh5 {[%emt 0:01:45]} Bd8 19. h3 Be6 {[%emt 0:03:29]} 20. Qd2 {[%emt 0:03:02]} Bd5 {[%emt 0:02:53]} 21. Qd3 {[%emt 0:03:49]} Ne8 {[%emt 0:02:28]} 22. Nf4 {[%emt 0:00:50]} Bxf3 {[%emt 0:00:26]} 23. Qxf3 {[%emt 0:00:46]} d5 {[%emt 0:01:41]} 24. Re2 {[%emt 0:01:06]} Nd6 {[%emt 0:00:14]} 25. Rae1 {[%emt 0:01:26]} Ne4 {[%emt 0:03:03]} 26. Nd3 {[%emt 0:02:24]} Bf6 {[%emt 0:06:34]} 27. Nc5 {[%emt 0:05:33]} Ng5 28. Qd3 {[%emt 0:01:10]} b6 {[%emt 0:06:36]} 29. Nd7 Rfd8 {[%emt 0:00:35]} 30. Nxf6+ {[%emt 0:00:55]} gxf6 31. Re7 {[%emt 0:04:46]} Ne6 {[%emt 0:01:47]} 32. R1xe6 1-0